Workbook

Sheet PL
A2: TESLA INC
A4: Profit & Loss Statement
A6: (All figures in $ Millions unless stated otherwise) | G6: 2020-12-31 | H6: =EOMONTH(G6,12) -> 2021-12-31 | I6: =EOMONTH(H6,12) -> 2022-12-31 | J6: 2023-12-31 | K6: 2024-12-31 | L6: 2025-12-31 | M6: 2026-12-31 | N6: 2027-12-31 | O6: 2028-12-31 | P6: =EOMONTH(O6,12) -> 2029-12-31 | Q6: =EOMONTH(P6,12) -> 2030-12-31
A7: Revenue | F7: I | G7: 31,536 | H7: 53,823 | I7: 81,462 | J7: 96,773 | K7: 97,690 | L7: 94,827
A8: Other Income | F8: II | L8: 0
A9: Total Revenue (I+II) | F9: III | G9: =G8+G7 -> 31,536 | H9: =H8+H7 -> 53,823 | I9: 81,462 | J9: 96,773 | K9: 97,690 | L9: 94,827
A10: Cost of Revenue | G10: 24,906 | H10: 40,217 | I10: 60,609 | J10: 79,113 | K10: 80,240 | L10: 77,733
A11: Gross Profit (III-IV) | F11: V | G11: =G7-G10 -> 6,630 | H11: 13,606 | I11: 20,853 | J11: 17,660 | K11: =K7-K10 -> 17,450 | L11: =L7-L10 -> 17,094
A12: Gross Profit Margin | G12: =G11/G9 -> 21% | H12: 25% | I12: 26% | J12: 18% | K12: 18% | L12: 18%
A13: Operating Expenses
A14: Research & Development | G14: 1,491 | H14: 2,593 | I14: 3,075 | J14: 3,969 | K14: 4,540 | L14: 6,411
A15: SGA | G15: 3,145 | H15: 4,517 | I15: 3,946 | J15: 4,800 | K15: 5,150 | L15: 5,834
A16: Restructuring and other | G16: 0 | H16: -27 | I16: 176 | J16: 0 | K16: 684 | L16: 494
A17: Total Operating Expenses | F17: VI | G17: =G14+G15+G16 -> 4,636 | H17: =H14+H15+H16 -> 7,083 | I17: 7,197 | J17: 8,769 | K17: 10,374 | L17: 12,739
A18: Depreciation & Amortisation [+] | G18: =CF!G7 -> 2,322 | H18: =CF!H7 -> 2,911 | I18: =CF!I7 -> 3,747 | J18: =CF!J7 -> 4,667 | K18: =CF!K7 -> 5,368 | L18: 0
A19: Wages and Salary | L19: 0
A20: Shares Based Payments | G20: =CF!G8 -> 1,734 | H20: =CF!H8 -> 2,121 | I20: =CF!I8 -> 1,560 | J20: =CF!J8 -> 1,812 | K20: =CF!K8 -> 1,999 | L20: 0
A21: Depreciation on leased assets | L21: 0
A22: Amortisation/Adjustment aquired Goodwill | L22: 0
A23: Exceptional Costs | L23: 0
A24: Total Adjustments | G24: =G20+G22+G23 -> 1,734 | H24: =H20+H22+H23 -> 2,121 | I24: 1,560 | J24: 1,812 | K24: 1,999
L25: 0
A26: Reported EBIT | G26: =G11-G17 -> 1,994 | H26: =H11-H17 -> 6,523 | I26: 13,656 | J26: 8,891 | K26: 7,076 | L26: 4,355
A28: Interest Income | G28: 30 | H28: 56 | I28: 297 | J28: 1,066 | K28: 1,569 | L28: 1,680
A29: Interest Expense | G29: -748 | H29: -371 | I29: -191 | J29: -156 | K29: -350 | L29: -338
A30: Notional Interest | G30: -122 | H30: 135 | I30: -43 | J30: 172 | K30: 695 | L30: -419
L31: 0
A32: Reported PBT | G32: =G26+G30+G29+G28 -> 1,154 | H32: =H26+H30+H29+H28 -> 6,343 | I32: =I26+I30+I29+I28 -> 13,719 | J32: =J26+J30+J29+J28 -> 9,973 | K32: =K26+K30+K29+K28 -> 8,990 | L32: =SUM(L27:L30) -> 923
A33: Tax Rate | G33: =G34/G32 -> -25% | H33: =H34/H32 -> -11% | I33: =I34/I32 -> -8% | J33: =J34/J32 -> 50% | K33: =K34/K32 -> -20% | L33: 0
A34: Reported Tax | G34: -292 | H34: -699 | I34: -1,132 | J34: 5,001 | K34: -1,837 | L34: 1,423
A36: Reported PAT | G36: =G32+G34+G35 -> 862 | H36: =H32+H34+H35 -> 5,644 | I36: =I32+I34+I35 -> 12,587 | J36: =J32+J34+J35 -> 14,974 | K36: =K32+K34+K35 -> 7,153 | L36: =L32-L34 -> -500
A37: PAT attributable to Common Stock holders | G37: =G40*G44 -> 700 | H37: 5,533 | I37: 12,583 | J37: 15,013 | K37: =K40*K44 -> 7,129 | L37: 3,794
A39: EPS
A40: Basic | G40: 0.25 | H40: 1.87 | I40: 4.02 | J40: 4.73 | K40: 2.23 | L40: =L37/L44 -> 1.176
A41: Diluted | G41: 0.21 | H41: 1.63 | I41: 3.62 | J41: 4.30 | K41: 2.04 | L41: =L37/L45 -> 1.075
A43: No.of Common Stock
A44: Basic | G44: 2,798 | H44: 2,959 | I44: 3,130 | J44: 3,174 | K44: 3,197 | L44: 3,225
A45: Diluted | G45: 3,249 | H45: 3,386 | I45: 3,475 | J45: 3,485 | K45: 3,498 | L45: 3,528

Sheet BS
A1: Balance Sheet
A2: Year Tracker | G2: =F2+1 -> 1 | H2: =G2+1 -> 2 | I2: 3 | J2: 4 | K2: 5 | L2: 6 | M2: 7 | N2: 8 | O2: 9
A3: (All figures in $ Millions unless stated otherwise) | G3: 2020-12-31 | H3: =EOMONTH(G3,12) -> 2021-12-31 | I3: =EOMONTH(H3,12) -> 2022-12-31 | J3: 2023-12-31 | K3: 2024-12-31 | L3: 2025-12-31 | M3: 2026-12-31 | N3: 2027-12-31 | O3: 2028-12-31
A4: Check
A5: Non-Current Assets | G5: 25,431 | H5: 35,031 | I5: 41,421 | J5: 57,002 | K5: 63,710 | L5: 69,164
A6: Current Assets | L6: 0
A7: Cash and Cash Equivalents | G7: 19,384 | H7: 17,576 | I7: 16,253 | J7: 16,398 | K7: 16,139 | L7: 16,513
A8: Short-Term marketable securities | G8: 0 | H8: 131 | I8: 5,932 | J8: 12,696 | K8: 20,424 | L8: 27,546
A9: Accounts Receivables | G9: 1,886 | H9: 1,913 | I9: 2,952 | J9: 3,508 | K9: 4,418 | L9: 4,576
A10: Inventory | G10: 4,101 | H10: 5,757 | I10: 12,839 | J10: 13,626 | K10: 12,017 | L10: 12,392
A11: Prepaid Exp. & other CA | G11: 1,346 | H11: 1,723 | I11: 2,941 | J11: 3,388 | K11: 5,362 | L11: 7,615
A12: Total | G12: =SUM(G7:G11) -> 26,717 | H12: 27,100 | I12: 40,917 | J12: 49,616 | K12: 58,360 | L12: 68,642
A14: Total Assets | G14: =G5+G12 -> 52,148 | H14: 62,131 | I14: 82,338 | J14: 106,618 | K14: 122,070 | L14: =L12+L5 -> 137,806
A16: Current Liablities | L16: 0
A17: Accounts Payable | G17: 6,051 | H17: 10,025 | I17: 15,255 | J17: 14,431 | K17: 12,474 | L17: 13,371
A18: Accrued liablites and other | G18: 3,855 | H18: 5,719 | I18: 8,205 | J18: 9,080 | K18: 10,723 | L18: 13,279
A19: Deferred revenue | G19: 1,458 | H19: 1,447 | I19: 1,747 | J19: 2,864 | K19: 3,168 | L19: 3,424
A20: Current portion of LT Debt | L20: 1,640
A21: Customer deposits | G21: 752 | H21: 925 | L21: 0
A22: Total | G22: =SUM(G17:G21) -> 12,116 | H22: 18,116 | I22: 25,207 | J22: 26,375 | K22: 26,365 | L22: 31,714
A23: Debt and finance leases | G23: =2132+9556 -> 11,688 | H23: =1589+5245 -> 6,834 | I23: =1502+1597 -> 3,099 | J23: =2373+2857 -> 5,230 | K23: =5757+2456 -> 8,213 | L23: 6,736
A24: Other long-term liabilities | G24: 3,330 | H24: 3,546 | I24: 5,330 | J24: 8,153 | K24: 10,495 | L24: 12,860
A25: Deferred Revenue | G25: 1,284 | H25: 2,052 | I25: 2,804 | J25: 3,251 | K25: 3,317 | L25: 3,631
A26: Total | G26: =SUM(G23:G25) -> 16,302 | H26: =SUM(H23:H25) -> 12,432 | I26: 11,233 | J26: 16,634 | K26: 22,025 | L26: =SUM(L23:L25) -> 23,227
A27: Total Liabilities | G27: =G22+G26 -> 28,418 | H27: 30,548 | I27: 36,440 | J27: 43,009 | K27: 48,390 | L27: =L26+L22 -> 54,941
A29: Provisions | G29: 655 | H29: 568 | I29: 409 | J29: 242 | K29: 63 | L29: 0
A30: Redeemable NCI | L30: 58
A31: Equity | G31: =1+27260+363 -> 27,624 | H31: =3+29803+54 -> 29,860 | I31: =3+32177-361 -> 31,819 | J31: =3+34892-143 -> 34,752 | K31: =3+38371-670 -> 37,704 | L31: 82,137
A32: Retained Earnings | G32: -5,399 | H32: 329 | I32: 12,885 | J32: 27,882 | K32: 35,209 | L32: 39,003
A33: NCI in Subsidiaries | G33: 850 | H33: 826 | I33: 785 | J33: 733 | K33: 704 | L33: 670
A34: Total liabilities & equity | G34: =G27+G29+G31+G32+G33 -> 52,148 | H34: =H27+H29+H31+H32+H33 -> 62,131 | I34: =I27+I29+I31+I32+I33 -> 82,338 | J34: 106,618 | K34: 122,070 | L34: =L31+L27+L30+L33 -> 137,806
A35: Check

Sheet CF
A1: Cahs Flow Statement
A2: Year Tracker | G2: =F2+1 -> 1 | H2: =G2+1 -> 2 | I2: 3 | J2: 4 | K2: 5 | L2: 6 | M2: 7 | N2: 8 | O2: 9
A3: (All figures in $ Millions unless stated otherwise) | G3: 2020-12-31 | H3: =EOMONTH(G3,12) -> 2021-12-31 | I3: =EOMONTH(H3,12) -> 2022-12-31 | J3: 2023-12-31 | K3: 2024-12-31 | L3: 2025-12-31 | M3: 2026-12-31 | N3: 2027-12-31 | O3: 2028-12-31
A4: Cash Flows from Operating Activities
A5: Net Income | G5: 862 | H5: 5,644 | I5: 12,587 | J5: 14,974 | K5: 7,153 | L5: 3,855
A6: Adjustments:
A7: Depreciation, amortization and impairment | G7: 2,322 | H7: 2,911 | I7: 3,747 | J7: 4,667 | K7: 5,368 | L7: 6,148
A8: Stock-based compensation | G8: 1,734 | H8: 2,121 | I8: 1,560 | J8: 1,812 | K8: 1,999 | L8: 2,825
A9: Inventory and purchase commitments write-downs | G9: 202 | H9: 140 | I9: 177 | J9: 463 | K9: 335 | L9: 362
A10: Foreign Exchange Gain/Loss | G10: 114 | H10: -55 | I10: 81 | J10: -144 | K10: -73 | L10: 452
A11: Deferred income taxes | I11: -196 | J11: -6,349 | K11: 477 | L11: 123
A12: Non-cash interest and other operating activities | G12: 525 | H12: 245 | I12: 340 | J12: 81 | K12: 172 | L12: 272
A13: Digital assets gain | H13: -27 | I13: 140 | K13: -589 | L13: 68
A14: Changes in Working Capital:
A15: Accounts receivable | G15: -652 | H15: -130 | I15: -1,124 | J15: -586 | K15: -1,083 | L15: -261
A16: Inventory | G16: -422 | H16: -1,709 | I16: -6,465 | J16: -1,195 | K16: 937 | L16: -630
A17: Operating lease vehicles | G17: -1,072 | H17: -2,114 | I17: -1,570 | J17: -1,952 | K17: -590 | L17: -25
A18: Prepaid expenses and other current assets | G18: -251 | H18: -271 | I18: -3,713 | J18: -2,652 | K18: -3,273 | L18: -3,181
A19: Other non-current assets | G19: -344 | H19: -1,291 | L19: 0
A20: Accounts payable and accrued liabilities | G20: 2,102 | H20: 4,578 | I20: 8,029 | J20: 2,605 | K20: 3,588 | L20: 4,376
A21: Deferred revenue | G21: 321 | H21: 793 | I21: 1,131 | J21: 1,532 | K21: 502 | L21: 363
A22: Customer deposits | G22: 7 | H22: 186 | L22: 0
A23: Other long-term liabilities | G23: 495 | H23: 476 | L23: 0
A24: Net cash provided by operating activities | G24: =SUM(G5:G23) -> 5,943 | H24: 11,497 | I24: 14,724 | J24: 13,256 | K24: 14,923 | L24: 14,747
A25: Cash Flows from Investing Activities
A26: Purchases of PP&E | G26: -3,157 | H26: -6,482 | I26: -7,158 | J26: -8,898 | K26: -11,339 | L26: -8,527
A27: Purchases of solar energy systems | G27: -75 | H27: -32 | I27: -5 | J27: -1 | K27: -3 | L27: 0
A28: Purchases of digital assets | H28: -1,500 | I28: 936 | L28: 0
A29: Proceeds from sales of digital assets | H29: 272 | I29: -9 | L29: 0
A30: Purchases of marketable securities/investments | H30: -132 | I30: -5,835 | J30: -19,112 | K30: -35,955 | L30: -37,109
A31: Proceeds from maturities of investments | I31: 22 | J31: 12,353 | K31: 28,310 | L31: 30,158
A32: Proceeds from sale of investments | J32: 138 | K32: 200 | L32: 0
A33: Receipt of government grants | G33: 123 | H33: 6 | I33: 76 | L33: 0
A34: Purchase of intangible assets | G34: -10 | L34: 0
A35: Business combinations, net of cash acquired | G35: -13 | J35: -64 | L35: 0
A36: Net cash used in investing activities | G36: =SUM(G26:G35) -> -3,132 | H36: =SUM(H26:H35) -> -7,868 | I36: -11,973 | J36: -15,584 | K36: -18,787 | L36: -15,478
A37: Cash Flows from Financing Activities
A38: Proceeds from issuances of common stock | G38: 12,269 | L38: 101
A39: Proceeds from issuances of convertible and other debt | G39: 9,713 | H39: 8,883 | J39: 3,931 | K39: 5,744 | L39: 5,586
A40: Repayments of convertible and other debt | G40: -11,623 | H40: -14,167 | I40: -3,364 | J40: -1,351 | K40: -2,500 | L40: -5,546
A41: Collateralized lease repayments | G41: -240 | H41: -9 | L41: 0
A42: Proceeds from exercises of stock options and other stock issuances | G42: 417 | H42: 707 | I42: 541 | J42: 700 | K42: 1,241 | L42: 1,186
A43: Principal payments on finance leases | G43: -338 | H43: -439 | I43: -502 | J43: -464 | K43: -381 | L43: -104
A44: Debt issuance costs | G44: -6 | H44: -9 | J44: -29 | K44: -14 | L44: -6
A45: Proceeds from investments by NCI in subsidiaries | G45: 24 | H45: 2 | L45: 0
A46: Distributions paid to NCI in subsidiaries | G46: -208 | H46: -161 | I46: -157 | J46: -144 | K46: -104 | L46: -78
A47: Payments for buy-outs of noncontrolling interests in subsidiaries | G47: -35 | H47: -10 | I47: -45 | J47: -54 | K47: -133 | L47: 0
A48: Net cash (used in) provided by financing activities | G48: =SUM(G38:G47) -> 9,973 | H48: -5,203 | I48: -3,527 | J48: 2,589 | K48: 3,853 | L48: 1,139
A49: Effect of exchange rate changes on cash and cash equivalents and restricted cash | G49: 334 | H49: -183 | I49: -444 | J49: 4 | K49: -141 | L49: 171
A50: Net (decrease) increase in cash and cash equivalents and restricted cash | G50: =G24+G36+G48+G49 -> 13,118 | H50: -1,757 | I50: -1,220 | J50: 265 | K50: -152 | L50: 579
A51: Cash and cash equivalents and restricted cash, beginning of period | G51: 6,783 | H51: 19,901 | I51: 18,144 | J51: 16,924 | K51: 17,189 | L51: 17,037
A52: Cash and cash equivalents and restricted cash, end of period | G52: =G50+G51 -> 19,901 | H52: =H50+H51 -> 18,144 | I52: 16,924 | J52: 17,189 | K52: 17,037 | L52: 17,616
G53: =G52-BS!G7 -> 517 | H53: =H52-BS!H7 -> 568 | I53: =I52-BS!I7 -> 671 | J53: =J52-BS!J7 -> 791 | K53: =K52-BS!K7 -> 898

Sheet Revenue Driver
A2: TESLA INC
A3: Year | G3: 2020-12-31 | H3: =EOMONTH(G3,12) -> 2021-12-31 | I3: =EOMONTH(H3,12) -> 2022-12-31 | J3: 2023-12-31 | K3: 2024-12-31 | L3: 2025-12-31 | M3: 2026-12-31 | N3: 2027-12-31 | O3: 2028-12-31 | P3: =EOMONTH(O3,12) -> 2029-12-31 | Q3: =EOMONTH(P3,12) -> 2030-12-31
A4: Total Revenue | G4: =PL!G9 -> 31,536 | H4: =PL!H9 -> 53,823 | I4: =PL!I9 -> 81,462 | J4: =PL!J9 -> 96,773 | K4: =PL!K9 -> 97,690 | L4: =PL!L9 -> 94,827 | M4: =SUM(M5:M7) -> 118,071 | N4: =SUM(N5:N7) -> 153,523 | O4: 208,843 | P4: 299,457 | Q4: 454,813
A5: Automotive Revenue | G5: 27,236 | H5: 47,232 | I5: 71,462 | J5: 82,419 | K5: 77,070 | L5: 69,526 | M5: =M37*M38 -> 80,907 | N5: =N37*N38 -> 93,954 | O5: 109,105 | P5: 126,700 | Q5: 147,133
A6: Energy generation and storage revenue | G6: 1,994 | H6: 2,789 | I6: 3,909 | J6: 6,035 | K6: 10,086 | L6: 12,771 | M6: =M63*M64 -> 22,260 | N6: =N63*N64 -> 41,841 | O6: 78,650 | P6: 147,673 | Q6: 277,844
A7: Services and other revenue | G7: 2,306 | H7: 3,802 | I7: 6,091 | J7: 8,319 | K7: 10,534 | L7: 12,530 | M7: =L7*(1+M67) -> 14,904 | N7: =M7*(1+N67) -> 17,728 | O7: 21,087 | P7: 25,083 | Q7: 29,836
H8: =H7/G7-1 -> 65% | I8: 60% | J8: 37% | K8: 27% | L8: =L7/K7-1 -> 19%
A9: Proportion %
A10: Automotive Revenue | G10: =G5/G$4 -> 86% | H10: =H5/H$4 -> 88% | I10: 88% | J10: 85% | K10: 79% | L10: 73%
A11: Energy generation and storage revenue | G11: =G6/G$4 -> 6% | H11: 5% | I11: 5% | J11: 6% | K11: 10% | L11: 13%
A12: Services and other revenue | G12: =G7/G$4 -> 7% | H12: 7% | I12: 7% | J12: 9% | K12: 11% | L12: 13%
A14: Growth %
A15: Automotive Revenue | H15: =H5/G5-1 -> 73% | I15: =I5/H5-1 -> 51% | J15: 15% | K15: -6% | L15: -10%
A16: Energy generation and storage revenue | H16: =H6/G6-1 -> 40% | I16: 40% | J16: 54% | K16: 67% | L16: 27%
A17: Services and other revenue | H17: 65% | I17: 60% | J17: 37% | K17: 27% | L17: 19%
A18: Total | H18: =H4/G4-1 -> 71% | I18: =I4/H4-1 -> 51% | J18: 19% | K18: 1% | L18: -3%
A21: Automotive
A23: Model S/X / Other Models | G23: 54,805 | H23: 24,390 | I23: 71,177 | J23: 70,826 | K23: 94,105 | L23: 53,900
A24: Model 3/Y | G24: 454,932 | H24: 906,032 | I24: 1,298,434 | J24: 1,775,159 | K24: 1,679,338 | L24: 1,600,767
A25: Total Production | G25: =SUM(G22:G24)/10^6 -> 0.51 | H25: 0.93 | I25: 1.37 | J25: 1.85 | K25: 1.77 | L25: =SUM(L22:L24)/10^6 -> 1.65
A27: Production
A28: Model S/X / Other Models | H28: =H23/(H$25*10^6) -> 3% | I28: =I23/(I$25*10^6) -> 5% | J28: 4% | K28: 5% | L28: 3%
A29: Model 3/Y | H29: =H24/(H$25*10^6) -> 97% | I29: 95% | J29: 96% | K29: 95% | L29: 97%
A30: Growth
A31: Model S/X / Other Models | H31: =H23/G23-1 -> -55% | I31: =I23/H23-1 -> 192% | J31: -0% | K31: 33% | L31: -43%
A32: Model 3/Y | H32: =H24/G24-1 -> 99% | I32: =I24/H24-1 -> 43% | J32: 37% | K32: -5% | L32: -5%
A34: Deliveries
A35: Model S/X / Other Models | G35: 57,085 | H35: 24,390 | I35: 66,705 | J35: 68,874 | K35: 85,133 | L35: 50,850
A36: Model 3/Y | G36: 442,562 | H36: 911,242 | I36: 1,247,146 | J36: 1,739,707 | K36: 1,704,093 | L36: 1,585,279
A37: Total Deliveries( In Mn) | G37: =SUM(G35:G36)/10^6 -> 0.50 | H37: 0.94 | I37: 1.31 | J37: 1.81 | K37: 1.79 | L37: =SUM(L35:L36)/10^6 -> 1.64 | M37: ='Market Share '!D32 -> 1.90 | N37: ='Market Share '!D33 -> 2 | O37: ='Market Share '!D34 -> 2.57 | P37: ='Market Share '!D35 -> 2.98 | Q37: ='Market Share '!D36 -> 3.46
A38: ARPU( $) | G38: =G5*10^6/(G37*10^6) -> 54,510 | H38: =H5*10^6/(H37*10^6) -> 50,481 | I38: 54,391 | J38: 45,571 | K38: 43,074 | L38: 42,494 | M38: =L38 -> 42494.2 | N38: =M38 -> 42494.2 | O38: 42494.2 | P38: 42494.2 | Q38: 42494.2
A40: Tesla Locations | H40: 644 | I40: 963 | J40: 1208 | K40: 1359 | L40: 1553
I41: =I40/H40-1 -> 0.50 | J41: 0.25 | K41: 0.13 | L41: =L40/K40-1 -> 0.14
A42: Installed Capacity
A43: California
A44: Model S/X / Other Models | L44: 550000
A45: Model 3/Y | L45: 100000
A46: Shanghai
A47: Model 3/Y | L47: 950000
A48: Berlin
A49: Model 3/Y | L49: 375000
A50: Texas
A51: Model 3/Y | L51: 250000
A52: Cyber truck | L52: 125000
A53: Total Capacity ( In Mn) | L53: =SUM(L44:L52)/10^6 -> 2.35
A56: Sales Growth
A57: Model S/X / Other Models | H57: =H35/G35-1 -> -57% | I57: =I35/H35-1 -> 173% | J57: 3% | K57: 24% | L57: -40%
A58: Model 3/Y | H58: =H36/G36-1 -> 106% | I58: =I36/H36-1 -> 37% | J58: 39% | K58: -2% | L58: -7%
A61: Energy generation and storage revenue
A62: Capacity
A63: Storage deployed (GWH) | H63: 4 | I63: 6.5 | J63: 14.7 | K63: 31.4 | L63: 46.7 | M63: 81.4 | N63: 153 | O63: 287.6 | P63: 540 | Q63: 1016
A64: Revenue per GWH | H64: =H6/H63 -> 697.25 | I64: =I6/I63 -> 601.38 | J64: =J6/J63 -> 410.54 | K64: =K6/K63 -> 321.21 | L64: =L6/L63 -> 273.47 | M64: =L64 -> 273.47 | N64: =M64 -> 273.47 | O64: 273.47 | P64: 273.47 | Q64: 273.47
A66: Others
A67: Service Growth | H67: =H7/G7-1 -> 65% | I67: =I7/H7-1 -> 60% | J67: 37% | K67: 27% | L67: 19% | M67: =L67 -> 19% | N67: =M67 -> 19% | O67: 19% | P67: 19% | Q67: 19%
A68: Super Charger Stations | H68: 3476 | I68: 4678 | J68: 5952 | K68: 6975 | L68: 8182
A69: Super Charger Connectors | H69: 31498 | I69: 42419 | J69: 54892 | K69: 65495 | L69: 77682

Sheet Market Share
A2: EV Sales By Region Vs Tesla Sales
A3: Year | B3: Region | C3: Total EV Sales (All OEMs) | D3: Tesla Sales | E3: % Share
A4: 2021 | B4: China | C4: 2,989,000 | D4: 484,000 | E4: =D4/C4 -> 16%
A5: =A4+1 -> 2022 | B5: China | C5: 5,670,000 | D5: 439,000 | E5: =D5/C5 -> 8%
A6: =A5+1 -> 2023 | B6: China | C6: 7,750,000 | D6: 603,000 | E6: 8%
A7: 2024 | B7: China | C7: 10,900,000 | D7: 657,000 | E7: 6%
A8: 2025 | B8: China | C8: 12,860,000 | D8: 625,698 | E8: 5%
A9: 2021 | B9: US | C9: 491,330 | D9: 352,000 | E9: =D9/C9 -> 72%
A10: =A9+1 -> 2022 | B10: US | C10: 812,453 | D10: 491,000 | E10: =D10/C10 -> 60%
A11: =A10+1 -> 2023 | B11: US | C11: 1,189,051 | D11: 625,000 | E11: 53%
A12: 2024 | B12: US | C12: 1,302,034 | D12: 579,000 | E12: 44%
A13: 2025 | B13: US | C13: 1,275,930 | D13: 568,454 | E13: 45%
A14: 2021 | B14: Europe | C14: 1,745,524 | D14: 167,000 | E14: =D14/C14 -> 10%
A15: =A14+1 -> 2022 | B15: Europe | C15: 2,588,906 | D15: 222,000 | E15: =D15/C15 -> 9%
A16: =A15+1 -> 2023 | B16: Europe | C16: 3,009,338 | D16: 238,000 | E16: 8%
A17: 2024 | B17: Europe | C17: 2,945,160 | D17: 326,000 | E17: 11%
A18: 2025 | B18: Europe | C18: 3,858,088 | D18: 236,357 | E18: 6%
A19: 2,021 | B19: ROW | C19: 1050000.00 | D19: 85000.00 | E19: 8%
A20: 2,022 | B20: ROW | C20: 1650000.00 | D20: 150000.00 | E20: 9%
A21: 2023 | B21: ROW | C21: 2200000.00 | D21: 200000.00 | E21: 9%
A22: 2024 | B22: ROW | C22: 2500000.00 | D22: 230000.00 | E22: 9%
A23: 2025 | B23: ROW | C23: 3200000.00 | D23: 359491.00 | E23: 11%
A25: Tesla Share World Wide in Mns
A26: Year | B26: Total EV Sales Worldwide | C26: Aggressive | D26: Tesla Sales | E26: Aggressive | F26: % Share
A27: 2021 | B27: 5.23 | D27: 1 | F27: =D27/B27 -> 19.12%
A28: =A27+1 -> 2022 | B28: 9.07 | D28: 1.3 | F28: =D28/B28 -> 14.33%
A29: =A28+1 -> 2023 | B29: 11.95 | D29: 1.81 | F29: =D29/B29 -> 15.15%
A30: 2024 | B30: 15.15 | D30: 1.79 | F30: =D30/B30 -> 11.82%
A31: 2025 | B31: 17.999 | D31: 1.64 | F31: =D31/B31 -> 9.11%
A32: =A31+1 -> 2026E | B32: =B45/10^6 -> 20.896 | C32: =C45/10^6 -> 26.091 | D32: =B32*F32 -> 1.90 | E32: =C32*F32 -> 2.38 | F32: =F31 -> 9.11%
A33: =A32+1 -> 2027E | B33: =B46/10^6 -> 24.266 | C33: 37.832 | D33: =B33*F33 -> 2.21 | E33: =C33*F33 -> 3.45 | F33: =F32 -> 9.11%
A34: 2028E | B34: 28.179 | C34: 54.857 | D34: =B34*F34 -> 2.57 | E34: 5.00 | F34: 9.11%
A35: 2029E | B35: 32.723 | C35: 79.543 | D35: =B35*F35 -> 2.98 | E35: 7.25 | F35: 9.11%
A36: 2030E | B36: 38.000 | C36: 115.337 | D36: =B36*F36 -> 3.46 | E36: 10.51 | F36: 9.11%
A38: Region wise Share EV | G38: Share of Global EV Sales
A39: Year | B39: Total EV Sales | C39: Aggressive | D39: China | E39: US | F39: Europe | G39: ROW | H39: China | I39: US | J39: Europe | K39: Row
A40: 2021 | B40: =SUM(D40:F40) -> 5225854 | D40: =SUMIFS($C$4:$C$23,$B$4:$B$23,D$39,$A$4:$A$23,$A40) -> 2989000 | E40: =SUMIFS($C$4:$C$23,$B$4:$B$23,E$39,$A$4:$A$23,$A40) -> 491330 | F40: =SUMIFS($C$4:$C$23,$B$4:$B$23,F$39,$A$4:$A$23,$A40) -> 1745524 | G40: =SUMIFS($C$4:$C$23,$B$4:$B$23,G$39,$A$4:$A$23,$A40) -> 1050000 | H40: =D40/SUM($D40:$G40) -> 48% | I40: =E40/SUM($D40:$G40) -> 8% | J40: =F40/SUM($D40:$G40) -> 28% | K40: =G40/SUM($D40:$G40) -> 17%
A41: =A40+1 -> 2022 | B41: =SUM(D41:F41) -> 9071359 | D41: =SUMIFS($C$4:$C$23,$B$4:$B$23,D$39,$A$4:$A$23,$A41) -> 5670000 | E41: =SUMIFS($C$4:$C$23,$B$4:$B$23,E$39,$A$4:$A$23,$A41) -> 812453 | F41: =SUMIFS($C$4:$C$23,$B$4:$B$23,F$39,$A$4:$A$23,$A41) -> 2588906 | G41: =SUMIFS($C$4:$C$23,$B$4:$B$23,G$39,$A$4:$A$23,$A41) -> 1650000 | H41: =D41/SUM($D41:$G41) -> 53% | I41: =E41/SUM($D41:$G41) -> 8% | J41: =F41/SUM($D41:$G41) -> 24% | K41: =G41/SUM($D41:$G41) -> 15%
A42: =A41+1 -> 2023 | B42: =SUM(D42:F42) -> 11948389 | D42: =SUMIFS($C$4:$C$23,$B$4:$B$23,D$39,$A$4:$A$23,$A42) -> 7750000 | E42: =SUMIFS($C$4:$C$23,$B$4:$B$23,E$39,$A$4:$A$23,$A42) -> 1189051 | F42: =SUMIFS($C$4:$C$23,$B$4:$B$23,F$39,$A$4:$A$23,$A42) -> 3009338 | G42: =SUMIFS($C$4:$C$23,$B$4:$B$23,G$39,$A$4:$A$23,$A42) -> 2200000 | H42: =D42/SUM($D42:$G42) -> 55% | I42: =E42/SUM($D42:$G42) -> 8% | J42: =F42/SUM($D42:$G42) -> 21% | K42: =G42/SUM($D42:$G42) -> 16%
A43: 2024 | B43: =SUM(D43:F43) -> 15147194 | D43: =SUMIFS($C$4:$C$23,$B$4:$B$23,D$39,$A$4:$A$23,$A43) -> 10900000 | E43: =SUMIFS($C$4:$C$23,$B$4:$B$23,E$39,$A$4:$A$23,$A43) -> 1302034 | F43: =SUMIFS($C$4:$C$23,$B$4:$B$23,F$39,$A$4:$A$23,$A43) -> 2945160 | G43: =SUMIFS($C$4:$C$23,$B$4:$B$23,G$39,$A$4:$A$23,$A43) -> 2500000 | H43: =D43/SUM($D43:$G43) -> 62% | I43: =E43/SUM($D43:$G43) -> 7% | J43: =F43/SUM($D43:$G43) -> 17% | K43: =G43/SUM($D43:$G43) -> 14%
A44: 2025 | B44: =SUM(D44:F44) -> 17994018 | D44: =SUMIFS($C$4:$C$23,$B$4:$B$23,D$39,$A$4:$A$23,$A44) -> 12860000 | E44: =SUMIFS($C$4:$C$23,$B$4:$B$23,E$39,$A$4:$A$23,$A44) -> 1275930 | F44: =SUMIFS($C$4:$C$23,$B$4:$B$23,F$39,$A$4:$A$23,$A44) -> 3858088 | G44: =SUMIFS($C$4:$C$23,$B$4:$B$23,G$39,$A$4:$A$23,$A44) -> 3200000 | H44: =D44/SUM($D44:$G44) -> 61% | I44: =E44/SUM($D44:$G44) -> 6% | J44: =F44/SUM($D44:$G44) -> 18% | K44: =G44/SUM($D44:$G44) -> 15%
A45: =A44+1 -> 2026E | B45: =B44*(1+B57) -> 20895811 | C45: =B44*(1+C57) -> 26091326 | D45: =$B45*H45 -> 12679056 | E45: =$B45*I45 -> 1257977 | F45: 3803803 | G45: 3154975 | H45: =H44 -> 61% | I45: =I44 -> 6% | J45: 18% | K45: 15%
A46: =A45+1 -> 2027E | B46: =B45*(1+B58) -> 24265561 | C46: =C45*(1+C58) -> 37832423 | D46: =$B46*H46 -> 14723735 | E46: =$B46*I46 -> 1460844 | F46: =$B46*J46 -> 4417221 | G46: =$B46*K46 -> 3663760 | H46: =H45 -> 61% | I46: =I45 -> 6% | J46: =J45 -> 18% | K46: =K45 -> 15%
A47: 2028E | B47: 28178730 | C47: =C46*(1+C59) -> 54857013 | D47: 17098149 | E47: 1696426 | F47: 5129562 | G47: 4254594 | H47: 61% | I47: 6% | J47: 18% | K47: 15%
A48: 2029E | B48: 32722954 | C48: 79542669 | D48: 19855470 | E48: 1969999 | F48: 5956777 | G48: 4940708 | H48: 61% | I48: 6% | J48: 18% | K48: 15%
A49: 2030E | B49: =38*10^6 -> 38000000 | C49: 115336870 | D49: 23057450 | E49: 2287690 | F49: 6917393 | G49: 5737468 | H49: 61% | I49: 6% | J49: 18% | K49: 15%
A50: YOY Growth EV Region Wise
A51: Year | B51: Consesus | C51: Aggressive | D51: China | E51: US | F51: Europe | G51: ROW
A52: 2021
A53: =A52+1 -> 2022 | B53: =B41/B40-1 -> 74% | D53: =D41/D40-1 -> 90% | E53: =E41/E40-1 -> 65% | F53: =F41/F40-1 -> 48% | G53: =G41/G40-1 -> 57%
A54: =A53+1 -> 2023 | B54: =B42/B41-1 -> 32% | D54: =D42/D41-1 -> 37% | E54: =E42/E41-1 -> 46% | F54: =F42/F41-1 -> 16% | G54: =G42/G41-1 -> 33%
A55: 2024 | B55: =B43/B42-1 -> 27% | D55: =D43/D42-1 -> 41% | E55: =E43/E42-1 -> 10% | F55: =F43/F42-1 -> -2% | G55: =G43/G42-1 -> 14%
A56: 2025 | B56: =B44/B43-1 -> 19% | D56: =D44/D43-1 -> 18% | E56: =E44/E43-1 -> -2% | F56: =F44/F43-1 -> 31% | G56: =G44/G43-1 -> 28%
A57: =A56+1 -> 2026E | B57: =(B49/B44)^(1/5)-1 -> 16% | C57: =45% -> 45% | D57: =D45/D44-1 -> -1% | E57: =E45/E44-1 -> -1% | F57: =F45/F44-1 -> -1% | G57: =G45/G44-1 -> -1%
A58: =A57+1 -> 2027E | B58: =B57 -> 16% | C58: =45% -> 45% | D58: =D46/D45-1 -> 16% | E58: =E46/E45-1 -> 16% | F58: =F46/F45-1 -> 16% | G58: =G46/G45-1 -> 16%
A59: 2028E | B59: =B58 -> 16% | C59: =45% -> 45% | D59: =D47/D46-1 -> 16% | E59: =E47/E46-1 -> 16% | F59: =F47/F46-1 -> 16% | G59: =G47/G46-1 -> 16%
A60: 2029E | B60: 16% | C60: =45% -> 45% | D60: =D48/D47-1 -> 16% | E60: =E48/E47-1 -> 16% | F60: =F48/F47-1 -> 16% | G60: =G48/G47-1 -> 16%
A61: 2030E | B61: 16% | C61: =45% -> 45% | D61: =D49/D48-1 -> 16% | E61: =E49/E48-1 -> 16% | F61: =F49/F48-1 -> 16% | G61: =G49/G48-1 -> 16%

Sheet Cost Matrix
A1: Cost Matrix
A2: Year Tracker | G2: 2020-12-31 | H2: =EOMONTH(G2,12) -> 2021-12-31 | I2: =EOMONTH(H2,12) -> 2022-12-31 | J2: 2023-12-31 | K2: 2024-12-31 | L2: 2025-12-31 | M2: 2026-12-31 | N2: 2027-12-31 | O2: 2028-12-31
G3: 2020-12-31 | H3: =EOMONTH(G3,12) -> 2021-12-31 | I3: =EOMONTH(H3,12) -> 2022-12-31 | J3: 2023-12-31 | K3: 2024-12-31 | L3: 2025-12-31 | M3: 2026-12-31 | N3: 2027-12-31 | O3: 2028-12-31
A5: Revenue | G5: =PL!G9 -> 31,536 | H5: =PL!H9 -> 53,823 | I5: =PL!I9 -> 81,462 | J5: =PL!J9 -> 96,773 | K5: =PL!K9 -> 97,690 | L5: =PL!L7 -> 94,827 | M5: =PL!M9 -> 0 | N5: =PL!N9 -> 0 | O5: =PL!O9 -> 0
A6: Cost of Revenue | G6: =PL!G10 -> 24,906 | H6: =PL!H10 -> 40,217 | I6: =PL!I10 -> 60,609 | J6: =PL!J10 -> 79,113 | K6: =PL!K10 -> 80,240 | L6: =PL!L10 -> 77,733
A7: R&D | G7: =PL!G14 -> 1,491 | H7: =PL!H14 -> 2,593 | I7: =PL!I14 -> 3,075 | J7: =PL!J14 -> 3,969 | K7: =PL!K14 -> 4,540 | L7: =PL!L14 -> 6,411
A8: SG&A | G8: =PL!G15 -> 3,145 | H8: =PL!H15 -> 4,517 | I8: =PL!I15 -> 3,946 | J8: =PL!J15 -> 4,800 | K8: =PL!K15 -> 5,150 | L8: =PL!L15 -> 5,834
A9: Other | G9: =PL!G16 -> 0 | H9: =PL!H16 -> -27 | I9: =PL!I16 -> 176 | J9: =PL!J16 -> 0 | K9: =PL!K16 -> 684 | L9: =PL!L16 -> 494
A10: Reported Tax | G10: =-PL!G34 -> 292 | H10: =-PL!H34 -> 699 | I10: =-PL!I34 -> 1132 | J10: =-PL!J34 -> -5001 | K10: =-PL!K34 -> 1837 | L10: =-PL!L34 -> -1423
A12: % of Sales
A13: Cost of Revenue | G13: =G6/G$5 -> 79% | H13: =H6/H$5 -> 75% | I13: 74% | J13: 82% | K13: 82% | L13: 82%
A14: R&D | G14: =G7/G$5 -> 5% | H14: =H7/H$5 -> 5% | I14: =I7/I$5 -> 4% | J14: =J7/J$5 -> 4% | K14: =K7/K$5 -> 5% | L14: =L7/L$5 -> 7%
A15: SG&A | G15: =G8/G$5 -> 10% | H15: =H8/H$5 -> 8% | I15: =I8/I$5 -> 5% | J15: =J8/J$5 -> 5% | K15: =K8/K$5 -> 5% | L15: =L8/L$5 -> 6%
A16: Other | G16: =G9/G$5 -> 0% | H16: =H9/H$5 -> -0% | I16: =I9/I$5 -> 0% | J16: =J9/J$5 -> 0% | K16: =K9/K$5 -> 1% | L16: =L9/L$5 -> 1%
A17: Tax Rate | G17: =G10/PL!G32 -> 25% | H17: =H10/PL!H32 -> 11% | I17: =I10/PL!I32 -> 8% | J17: =J10/PL!J32 -> -50% | K17: =K10/PL!K32 -> 20% | L17: =L10/PL!L32 -> -154%

Sheet Asset schedule
A1: Asset Schedule
A2: Year Tracker
G3: 2020-12-31 | H3: =EOMONTH(G3,12) -> 2021-12-31 | I3: =EOMONTH(H3,12) -> 2022-12-31 | J3: 2023-12-31 | K3: 2024-12-31 | L3: 2025-12-31 | M3: 2026-12-31 | N3: 2027-12-31 | O3: 2028-12-31
A4: Revenue | G4: =PL!G7 -> 31,536 | H4: =PL!H7 -> 53,823 | I4: =PL!I7 -> 81,462 | J4: =PL!J7 -> 96,773 | K4: =PL!K7 -> 97,690 | L4: =PL!L7 -> 94,827
A5: CAPEX (% of sales) | H5: =H8/G4 -> 21% | I5: 13% | J5: 11% | K5: =K8/J4 -> 12% | L5: =L8/K4 -> 9%
A7: Gross Block | G7: =G10-G9-G8 -> 27,391 | H7: 35,280 | I7: 43,304 | J7: 60,161 | K7: =K10-K9-K8 -> 67,959 | L7: =K7+L8 -> 76,486
A8: CAPEX | G8: =-CF!G26 -> 3,157 | H8: =-CF!H26 -> 6,482 | I8: =-CF!I26 -> 7,158 | J8: =-CF!J26 -> 8,898 | K8: =-CF!K26 -> 11,339 | L8: =-CF!L26 -> 8,527
A9: Accumulated Dep | G9: -5,117 | H9: -6,731 | I9: -9,041 | J9: -12,057 | K9: -15,588 | L9: =L7-L10 -> 7,322
A10: Net Block | G10: =BS!G5 -> 25,431 | H10: =BS!H5 -> 35,031 | I10: =BS!I5 -> 41,421 | J10: =BS!J5 -> 57,002 | K10: =BS!K5 -> 63,710 | L10: =BS!L5 -> 69,164
A12: Dep | G12: =CF!G7 -> 2,322 | H12: =CF!H7 -> 2,911 | I12: =CF!I7 -> 3,747 | J12: =CF!J7 -> 4,667 | K12: =CF!K7 -> 5,368
A13: Dep (% of Op. Bl.) | H13: =H12/G10 -> 11% | I13: =I12/H10 -> 11% | J13: 11% | K13: 9%

Sheet Debt Schedule
A1: Debt Schedule
G3: 2020-12-31 | H3: =EOMONTH(G3,12) -> 2021-12-31 | I3: =EOMONTH(H3,12) -> 2022-12-31 | J3: 2023-12-31 | K3: 2024-12-31 | L3: 2025-12-31 | M3: 2026-12-31 | N3: 2027-12-31 | O3: 2028-12-31 | P3: =EOMONTH(O3,12) -> 2029-12-31 | Q3: =EOMONTH(P3,12) -> 2030-12-31
A4: Revenue | G4: =PL!G7 -> 31,536 | H4: =PL!H7 -> 53,823 | I4: =PL!I7 -> 81,462 | J4: =PL!J7 -> 96,773 | K4: =PL!K7 -> 97,690
A5: Beginning Balance | H5: 10,570 | I5: 5,380 | J5: 2,060 | K5: 4,680
A6: Interest | G6: =-PL!G29 -> 748 | H6: =-PL!H29 -> 371 | I6: =-PL!I29 -> 191 | J6: =-PL!J29 -> 156 | K6: =-PL!K29 -> 350
A7: Interest % | H7: =H6/H5 -> 4% | I7: =I6/I5 -> 4% | J7: 8% | K7: 7%
A8: Repayment
A9: Closing Debt Balance | G9: 9,556 | H9: 5,245 | I9: 1,597 | J9: 2,857 | K9: 5,757
A12: Accrued liablites and other | G12: =BS!G18 -> 3,855 | H12: =BS!H18 -> 5,719 | I12: =BS!I18 -> 8,205 | J12: =BS!J18 -> 9,080 | K12: =BS!K18 -> 10,723
A13: as a % of Revenue | G13: =G12/G4 -> 12% | H13: =H12/H4 -> 11% | I13: 10% | J13: 9% | K13: 11%
A15: Other long-term liabilities | G15: =BS!G24 -> 3,330 | H15: =BS!H24 -> 3,546 | I15: =BS!I24 -> 5,330 | J15: =BS!J24 -> 8,153 | K15: =BS!K24 -> 10,495
A16: as a % of Revenue | G16: =G15/G4 -> 11% | H16: =H15/H4 -> 7% | I16: 7% | J16: 8% | K16: 11%
A20: BOP Debt
A21: Repayment
A22: Raising of Debt
A23: EOP Debt
A26: Repayment as % of Opening debt
A29: Intrest income

Sheet WACC (hidden)
A1: FCFF
A2: Year Tracker | G2: =F2+1 -> 1 | H2: =G2+1 -> 2 | I2: 3 | J2: 4 | K2: 5 | L2: 6 | M2: 7 | N2: 8 | O2: 9
G3: 2020-12-31 | H3: =EOMONTH(G3,12) -> 2021-12-31 | I3: =EOMONTH(H3,12) -> 2022-12-31 | J3: 2023-12-31 | K3: 2024-12-31 | L3: 2025-12-31 | M3: 2026-12-31 | N3: 2027-12-31 | O3: 2028-12-31
A5: FCFF | G5: =SUM(G6:G9) ->  | H5: =SUM(H6:H9) ->  | K5: =SUM(K6:K9) ->  | L5: =SUM(L6:L9) -> -7,884
A6: NOPAT | G6: =PL!#REF! ->  | H6: =PL!#REF! ->  | I6: =PL!#REF! ->  | J6: =PL!#REF! ->  | K6: =PL!#REF! ->  | L6: =PL!L40 -> 1 | M6: =PL!#REF! ->  | N6: =PL!#REF! ->  | O6: =PL!#REF! -> 
A7: Dep | G7: ='Asset schedule'!G12 -> 2,322 | H7: ='Asset schedule'!H12 -> 2,911 | I7: ='Asset schedule'!I12 -> 3,747 | J7: ='Asset schedule'!J12 -> 4,667 | K7: ='Asset schedule'!K12 -> 5,368 | L7: ='Asset schedule'!L12 -> 0 | M7: ='Asset schedule'!M12 -> 0 | N7: ='Asset schedule'!N12 -> 0 | O7: ='Asset schedule'!O12 -> 0
A8: Δ WC | G8: =SUM(CF!G15:G23) -> 184 | H8: =SUM(CF!H15:H23) -> 518 | I8: =SUM(CF!I15:I23) -> -3,712 | J8: =SUM(CF!J15:J23) -> -2,248 | K8: =SUM(CF!K15:K23) -> 81 | L8: =SUM(CF!L15:L23) -> 642 | M8: =SUM(CF!M15:M23) -> 0 | N8: =SUM(CF!N15:N23) -> 0 | O8: =SUM(CF!O15:O23) -> 0
A9: CAPEX | G9: =CF!G26 -> -3,157 | H9: =CF!H26 -> -6,482 | I9: =CF!I26 -> -7,158 | J9: =CF!J26 -> -8,898 | K9: =CF!K26 -> -11,339 | L9: =CF!L26 -> -8,527 | M9: =CF!M26 -> 0 | N9: =CF!N26 -> 0 | O9: =CF!O26 -> 0

Sheet Valuation
A2: (All figures in $ Millions unless stated otherwise)
A5: Capital Structure | B5: Values | C5: % | D5: Cost
A6: Total Equity | B6: =BS!L34 -> 137806
A7: Total Debt | B7: =BS!L25 -> 3631
A8: Total | B8: =SUM(B6:B7) -> 141437
A11: CAPM
A12: Rf | B12: 4.16%
A13: Beta | B13: 1.88
A14: Rm | B14: 10.56%
A15: Ke | B15: =(B14-B12)*B13+(B12) -> 16%
A16: Kd | B16: ='Debt Schedule'!L7*(1-0.11) -> 0%
A17: Terminal Growth rate | B17: 9%
C18: Explict Forecast | G18: Linear Growth | K18: Linear Decline
A19: Year | B19: 0 | C19: 1 | D19: 2 | E19: 3 | F19: 4 | G19: 5 | H19: =G19+1 -> 6 | I19: =H19+1 -> 7 | J19: 8 | K19: 9 | L19: 10 | M19: 11 | N19: =M19+1 -> 12
A20: FCFF | C20: =WACC!L5 -> -7,884 | D20: =WACC!M5 ->  | E20: =WACC!N5 ->  | F20: =WACC!O5 ->  | G20: =F20*(1+G22) ->  | H20: =G20*(1+H22) ->  | K20: =J20*(1+K22) ->  | L20: =K20*(1+L22) ->  | M20: =L20*(1+M22) ->  | N20: =M20*(1+N22) -> 
N21: =N20*(1+$N$22)/(B15-B17) -> 
A22: Growth Rate | D22: =D20/C20-1 ->  | E22: =E20/D20-1 ->  | G22: =F22 ->  | H22: =G22 ->  | I22: =H22 ->  | K22: =J22-(J22-N22)/4 ->  | L22: =K22-(K22-O22)/3 ->  | N22: 9%
A24: PV | C24: =SUM(C20:C21)/(1+B15)^C19 -> -6,785 | D24: =SUM(D20:D21)/(1+C15)^D19 -> 
A25: Equity Value | B25: =SUM(C24:N24) -> 
A26: No. of shares | B26: =PL!L49 -> 0
A27: Intrinsic Value | B27: =B25/B26 -> 
A28: CMP | B28: 481.2
A29: Upside | B29: =B27/B28-1 -> 
A31: EV | B31: MARKET CAP+ DEBT- CASH

Sheet Ref.
A1: 🇮🇳
A2: India EV Adoption Targets & Trends
A3: India’s official EV adoption target — 30% share of total vehicles sold by 2030 (EV30@30) (NITI Aayog / government report)
A4: https://www.niti.gov.in/sites/default/files/2025-08/Electric-Vehicles-WEB-LOW-Report.pdf
A5: S&P Global on India’s EV trends and the 30% passenger EV target by 2030
A6: https://www.spglobal.com/automotive-insights/en/blogs/2025/03/india-ev-market-trends-future
A7: India EV growth and adoption data (7.8% uptake in FY25 vs 30% target)
A8: https://auto.economictimes.indiatimes.com/news/industry/indias-ev-uptake-hits-7-8-in-fy25-are-we-on-track-to-achieve-2030-target/120092840
A9: India EV industry overview with adoption and targets
A10: https://www.ibef.org/industry/electric-vehicle
A13: 🇪🇺
A14: European Union EV Targets
A15: EU plan to end sale of new CO₂-emitting cars by 2035 (Fit for 55 deal)
A16: https://ec.europa.eu/commission/presscorner/detail/en/ip_22_6462
A18: 🇬🇧
A19: United Kingdom EV Sales Mandates
A20: UK Zero Emission Vehicle mandate (80% new cars by 2030 → 100% by 2035)
A21: https://www.gov.uk/government/news/government-sets-out-path-to-zero-emission-vehicles-by-2035
A24: 🌍
A26: Global EV Adoption & Growth Outlook
A27: IEA Global EV Outlook 2025 — global EV fleet expected to grow ~4× by 2030
A28: https://www.iea.org/reports/global-ev-outlook-2025/outlook-for-electric-mobility
